[Event "44th Chess Olympiad Women 2022"]
[Site "Chennai"]
[Date "2022.07.30"]
[Round "2.11"]
[White "Vantika Agrawal"]
[Black "Rogule, Laura"]
[Result "1-0"]
[WhiteElo "2371"]
[BlackElo "2292"]
[Annotator "TA"]
[PlyCount "141"]
[EventDate "2022.??.??"]
[TimeControl "60"]

{[%evp 12,141,33,39,34,33,28,28,39,-4,26,19,26,35,20,30,25,31,62,61,93,93,93,
96,96,105,86,98,72,57,78,52,56,58,53,48,43,36,39,46,41,26,35,34,50,25,66,8,30,
25,27,8,29,6,20,0,10,3,0,-148,266,283,275,268,202,113,328,148,320,283,288,278,
277,264,397,335,314,308,293,293,386,389,385,361,377,215,205,146,201,195,358,
368,418,376,369,358,351,335,842,597,524,509,904,672,633,637,632,622,1223,1188,
951,549,441,419,29986,29987,29987,29988,29988,29989,29989,29990,29990,29991,
29992,29993,29994,29995,29996,29997,29997,29998]} 1. d4 {[%emt 0:00:30]} Nf6 {
[%emt 0:00:30]} 2. c4 {[%emt 0:00:30]} e6 {[%emt 0:00:30]} 3. Nf3 {[%emt 0:00:
00]} b6 {[%emt 0:00:30]} 4. g3 {[%emt 0:00:30]} Ba6 {[%emt 0:00:30]} 5. b3 {
[%emt 0:00:30]} c6 {[%emt 0:00:30]} 6. Bg2 {[%emt 0:00:30]} d5 {[%emt 0:00:30]}
7. O-O {[%emt 0:00:30] 7.Nbd2 is more advanced technology.} Nbd7 {[%emt 0:00:
00] E15: Queen's Indian: 4 g3 sidelines, 4 g3 Ba6 and 4 g3 Bb7 early
deviations.} 8. Qc2 {[%emt 0:00:30]} Rc8 {[%emt 0:00:30]} 9. Bb2 {[%emt 0:00:
00]} c5 {[%emt 0:00:30] White has an edge.} 10. Nbd2 {[%emt 0:00:30][%cal
Yb1d2,Yd2c4,Yc4e5]} Be7 {[%emt 0:00:30]} 11. Rac1 {[%emt 0:00:30]} dxc4 {
[%emt 0:00:30]} 12. Nxc4 {[%emt 0:00:30]} O-O {[%emt 0:00:30]} 13. Rfd1 {
[%emt 0:00:30] [#]} Qe8 $146 {[%emt 0:00:30]} ({Predecessor:} 13... Bb7 14.
dxc5 Rxc5 15. Ng5 Bxg2 16. Bxf6 Rxg5 17. Bxg5 Bxg5 18. f4 Bd5 19. fxg5 Qxg5 20.
Qd2 {1-0 (37) Hulak,K (2570)-Dizdar,G (2525) Bled 2002}) 14. Qb1 {[%emt 0:00:
00]} b5 {[%emt 0:00:30]} 15. Nce5 {[%emt 0:00:30]} b4 {[%emt 0:00:30]} 16. e3 {
[%emt 0:00:30]} Nb6 {[%emt 0:00:30]} 17. dxc5 {[%emt 0:00:30]} Bxc5 {[%emt 0:
00:00]} 18. Ng5 {[%emt 0:00:30][%cal Ye5g4]} h6 {[%emt 0:00:30]} 19. Ne4 {
[%emt 0:00:30] White is much more active.} Nxe4 {[%emt 0:00:30]} 20. Qxe4 {
[%emt 0:00:30] [#] Strongly threatening Nc6.} Nd5 {[%emt 0:00:30]} 21. Nc4 {
[%emt 0:00:30]} Qe7 {[%emt 0:00:30]} 22. Qe5 {[%emt 0:00:30][%csl Gb2,Yd5,Yg7]
[%cal Re5g7]} f6 {[%emt 0:00:30]} 23. Qh5 {[%emt 0:00:30]} Bb7 {[%emt 0:00:00]}
24. Qe2 {[%emt 0:00:30]} Rfd8 {[%emt 0:00:30]} 25. h4 {[%emt 0:00:30]} Ba8 {
[%emt 0:00:30]} 26. Qg4 {[%emt 0:00:30]} Nb6 {[%emt 0:00:30]} 27. Rxd8+ {
[%emt 0:00:30]} Rxd8 {[%emt 0:00:30]} 28. Bxa8 {[%emt 0:00:30]} Rxa8 {[%emt 0:
00:00]} 29. Rd1 {[%emt 0:00:30]} (29. Na5 $14 e5 30. Qe2) 29... Nd5 {[%emt 0:
00:00]} 30. Qe4 {[%emt 0:00:30] Black must now prevent Rxd5.} Rd8 {[%emt 0:00:
00]} 31. Qc2 {[%emt 0:00:30]} Rd7 {[%emt 0:00:30]} 32. Rd3 {[%emt 0:00:30]} Qf7
{[%emt 0:00:30]} 33. e4 {[%emt 0:00:30]} Nb6 {[%emt 0:00:30]} 34. Rxd7 {
[%emt 0:00:30]} Qxd7 {[%emt 0:00:30]} 35. Ne5 {[%emt 0:00:30]} fxe5 $2 {
[%emt 0:00:30]} (35... Qd6 $17 {and life is bright.} 36. Nd3 Qxg3+ 37. Kf1 Qh3+
38. Ke2 Qg4+ 39. Kd2 Bf8) 36. Qxc5 $17 {[%emt 0:00:30] Endgame KQB-KQN} Qd1+ {
[%emt 0:00:30]} 37. Kg2 {[%emt 0:00:30]} Nd7 {[%emt 0:00:00]} 38. Qxa7 {
[%emt 0:00:30]} ({White should play} 38. Qe7 $18) 38... Kf7 {[%emt 0:00:30]} (
38... Kh7 $16 {is a better defense.}) 39. Qa8 {[%emt 0:00:30]} (39. Qb7 $18 {
has better winning chances.}) 39... Qd3 $2 {[%emt 0:00:30]} (39... Qc2 $16) 40.
Qc6 {[%emt 0:00:30]} Ke7 {[%emt 0:00:30]} 41. Qb7 {[%emt 0:00:00]} Qd6 {
[%emt 0:30:30]} 42. Bc1 {[%emt 0:00:30]} h5 {[%emt 0:00:30]} (42... Kf8 $142
43. Be3 Kg8) 43. Be3 {[%emt 0:00:30]} Kf8 {[%emt 0:00:30]} 44. Qc8+ {[%emt 0:
00:30]} Kf7 {[%emt 0:00:30]} 45. Qc2 {[%emt 0:00:30]} Kg6 {[%emt 0:00:30]} 46.
Qd2 {[%emt 0:00:30]} Qe7 {[%emt 0:00:30]} 47. f3 {[%emt 0:00:00]} Nb8 {[%emt 0:
00:30]} 48. Bf2 {[%emt 0:00:30]} (48. Qc1 $142) 48... Nc6 $18 {[%emt 0:00:30]}
49. f4 {[%emt 0:00:30]} Kh7 {[%emt 0:00:30]} (49... exf4 $16 50. gxf4 (50. Qxf4
Qd8 $16) 50... Kf7) 50. Qe2 {[%emt 0:00:30]} g6 $2 {[%emt 0:00:30]} (50... Qe8
{was worth a try.} 51. fxe5 Nxe5) 51. Qb5 {[%emt 0:00:00]} Qd6 {[%emt 0:00:30]}
52. Qc5 {[%emt 0:00:30]} Qd7 {[%emt 0:00:30]} 53. fxe5 {[%emt 0:00:30]} Qb7 {
[%emt 0:00:30]} 54. Qd6 {[%emt 0:00:30]} Ne7 $2 {[%emt 0:00:30]} (54... Qc8 55.
Bc5 Kg8) 55. Kh2 {[%emt 0:00:30]} Ng8 {[%emt 0:00:00]} 56. Qxe6 {[%emt 0:00:30]
} Qxe4 {[%emt 0:00:30]} (56... Nh6 $142 57. Qd5 Ng4+ 58. Kg2 Qc7) 57. Qf7+ {
[%emt 0:00:30]} Kh8 {[%emt 0:00:30]} 58. Qf4 {[%emt 0:00:30] Against Nh6} Qc2 {
[%emt 0:00:30]} 59. Kg2 {[%emt 0:00:30]} Qxa2 {[%emt 0:00:30]} 60. e6 {[%emt 0:
00:30] Intending Kh3 and mate.} Qe2 {[%emt 0:00:00]} 61. Qf7 {[%emt 0:00:30]}
Qe4+ {[%emt 0:00:30]} 62. Kg1 {[%emt 0:00:30]} Nh6 {[%emt 0:00:30]} (62... Qb1+
$18 63. Kh2 Qc2) 63. Qf6+ {[%emt 0:00:30] White mates.} Kh7 {[%emt 0:00:30]}
64. Qe7+ {[%emt 0:00:30]} ({Stronger than} 64. Bd4 Qe1+ 65. Kg2 Qe2+ 66. Bf2 (
66. Kh3 Qg4+ 67. Kg2 Qe2+ 68. Bf2 Qe4+ 69. Kf1 Nf5 $14) 66... Qe4+ 67. Kf1 (67.
Kg1 Qb1+ 68. Kg2 Qe4+ 69. Kf1 Nf5 $14) 67... Nf5 $14) 64... Kg8 {[%emt 0:00:30]
} 65. Qd8+ {[%emt 0:00:30]} Kh7 {[%emt 0:00:30]} 66. Qd7+ {[%emt 0:00:30]} Kg8
{[%emt 0:00:30]} 67. e7 {[%emt 0:00:00]} Qb1+ {[%emt 0:00:30]} 68. Kh2 {
[%emt 0:00:30][%cal Re7e8]} Ng4+ {[%emt 0:00:30] [#]} 69. Qxg4 $3 {[%emt 0:00:
30]} hxg4 {[%emt 0:00:30]} (69... Qf5 70. e8=Q+) 70. e8=Q+ {[%emt 0:00:30]} Kh7
{[%emt 0:00:30]} 71. Qf7+ {[%emt 0:00:30] Weighted Error Value: White=0.31/
Black=0.37} 1-0

[Event "44th Chess Olympiad Women 2022"]
[Site "Chennai"]
[Date "2022.07.30"]
[Round "2.12"]
[White "Putar, Lara"]
[Black "Gaal, Zsoka"]
[Result "0-1"]
[WhiteElo "1969"]
[BlackElo "2313"]
[Annotator "TA"]
[PlyCount "110"]
[EventDate "2022.??.??"]
[TimeControl "60"]

{[%evp 25,110,0,0,3,6,5,0,0,10,10,18,0,0,0,0,0,9,-43,-66,-55,-47,-43,-47,-214,
-215,-211,-214,-341,-341,-321,-314,-343,-319,-341,-326,-313,-317,-302,-190,
-191,-199,-788,-894,-856,-830,-850,-779,-870,-816,-997,-964,-739,-694,-960,
-887,-12839,-7683,-29966,-29969,-29969,-29970,-29970,-29971,-29970,-29968,
-29968,-29965,-29975,-29974,-29974,-29975,-29975,-29976,-29976,-29977,-29977,
-29978,-29982,-29983,-29983,-29984,-29984,-29983,-29985,-29984,-29983,-29984]} 
1. d4 {[%emt 0:00:05]} d5 {[%emt 0:00:20]} 2. c4 {[%emt 0:00:06]} dxc4 {
[%emt 0:00:09]} 3. Nf3 {[%emt 0:00:06]} Nf6 {[%emt 0:00:15]} 4. e3 {[%emt 0:00:
00]} e6 {[%emt 0:00:23]} 5. Bxc4 {[%emt 0:00:56]} a6 {[%emt 0:00:06]} 6. O-O {
[%emt 0:00:26]} c5 {[%emt 0:00:36]} 7. dxc5 {[%emt 0:00:30]} Bxc5 {[%emt 0:00:
00]} 8. Qxd8+ {[%emt 0:01:11]} Kxd8 {[%emt 0:00:08]} 9. Rd1+ {[%emt 0:02:45]}
Ke7 {[%emt 0:00:18]} 10. a3 {[%emt 0:07:15]} b5 {[%emt 0:03:53]} 11. Be2 {
[%emt 0:06:11]} Bb7 {[%emt 0:05:19]} 12. b4 {[%emt 0:03:33]} Bd6 {[%emt 0:00:
00]} 13. Bb2 {[%emt 0:07:49]} Nbd7 {[%emt 0:01:36]} 14. Nbd2 {[%emt 0:03:22]
D27: Queen's Gambit Accepted: Classical main line: 7 e4!? and 7 a4.} Nb6 {
[%emt 0:02:09]} 15. Bd4 {[%emt 0:05:35]} Na4 {[%emt 0:03:07] [#]} 16. Rdc1 $146
{[%emt 0:09:06] The position is equal.} ({Predecessor:} 16. Nb3 Bd5 17. Na5 Ne4
18. Rac1 Rhc8 19. Bd3 f6 20. Bxe4 Bxe4 21. Ne1 e5 22. Ba1 {0-1 (66) Schebler,G
(2496)-Feller,S (2478) Differdange 2007}) 16... Rhc8 {[%emt 0:21:43]} 17. Bd1 {
[%emt 0:05:10]} Bd5 {[%emt 0:15:16]} 18. Bxa4 {[%emt 0:21:31]} bxa4 {[%emt 0:
00:00][%cal Yb5a4,Ya4a3,Ya3a2]} 19. Ne5 {[%emt 0:03:46]} Rxc1+ {[%emt 0:08:23]}
20. Rxc1 {[%emt 0:00:12]} a5 {[%emt 0:12:47]} 21. Nd3 {[%emt 0:00:00]} (21.
bxa5 $11 Bxa3 22. Ra1 (22. Rc7+ Ke8 $11)) 21... axb4 $15 {[%emt 0:00:00]} 22.
Nxb4 {[%emt 0:00:50]} Bxb4 {[%emt 0:07:01]} 23. axb4 {[%emt 0:00:00]} a3 {
[%emt 0:00:35]} 24. Nc4 $2 {[%emt 0:05:01] White does not recover from this.} (
{Better is} 24. Ba1 $1 $15) 24... Bxc4 $19 {[%emt 0:02:26]} 25. Rxc4 {[%emt 0:
00:02] Endgame KRB-KRN} a2 {[%emt 0:00:33]} 26. Ba1 {[%emt 0:01:00]} (26. Rc1 {
was necessary.}) 26... Rd8 {[%emt 0:01:59][%cal Rd8d1] [#]} 27. Rc7+ {[%emt 0:
00:56]} Rd7 {[%emt 0:00:46]} 28. Rc1 {[%emt 0:00:00]} Rd3 {[%emt 0:03:51]} 29.
Kf1 {[%emt 0:02:10]} Rb3 {[%emt 0:00:58]} 30. Ke2 {[%emt 0:01:01]} Rb1 {
[%emt 0:00:32]} ({Weaker is} 30... Rxb4 31. Rc7+ Nd7 32. Ra7 $11) 31. Kd2 {
[%emt 0:00:53]} Ne4+ {[%emt 0:00:30]} ({Worse is} 31... Rxb4 32. Rc7+ Kd6 33.
Ra7 $11) 32. Kc2 {[%emt 0:00:40]} Rxb4 {[%emt 0:00:13] White must now prevent .
..Rc4+.} 33. Bd4 $2 {[%emt 0:01:07]} (33. Rf1) 33... Rc4+ {[%emt 0:01:22]} 34.
Kb2 {[%emt 0:00:15]} Rxc1 {[%emt 0:00:30]} 35. Kxc1 {[%emt 0:00:06]} Nxf2 {
[%emt 0:00:42] KB-KN} 36. Kb2 {[%emt 0:00:27]} e5 {[%emt 0:00:25]} 37. Bb6 {
[%emt 0:00:48]} Ke6 {[%emt 0:00:46]} 38. Kxa2 {[%emt 0:00:06]} Kd5 {[%emt 0:00:
21]} 39. Kb3 {[%emt 0:01:27]} Ke4 {[%emt 0:00:00] ...Ng4 is the strong threat.}
40. Kc2 {[%emt 0:01:01]} Ng4 $1 {[%emt 0:00:00][%csl Ye3,Yh2]} 41. Kd2 {
[%emt 0:30:34]} Nxh2 {[%emt 0:30:07] Black mates.} 42. Ke2 {[%emt 0:00:35]} Ng4
{[%emt 0:00:07]} 43. Bc5 {[%emt 0:00:41]} h5 {[%emt 0:00:09]} 44. Bb6 {[%emt 0:
01:15]} Nh6 {[%emt 0:00:37]} 45. Kf2 {[%emt 0:00:00]} Nf5 {[%emt 0:00:36]} 46.
Bc5 {[%emt 0:00:58]} g5 {[%emt 0:00:33][%cal Yg7g5,Yg5g4]} 47. Bb6 {[%emt 0:00:
29]} h4 {[%emt 0:01:14]} 48. Bd8 {[%emt 0:00:44]} g4 {[%emt 0:00:09]} 49. Bb6 {
[%emt 0:00:07]} h3 {[%emt 0:00:32]} 50. gxh3 {[%emt 0:00:25]} gxh3 {[%emt 0:00:
07]} 51. Ba7 {[%emt 0:00:45] [#]} Nxe3 $1 {[%emt 0:00:18]} 52. Kg3 {[%emt 0:00:
35]} f5 {[%emt 0:00:13]} 53. Kxh3 {[%emt 0:00:12]} Kf3 {[%emt 0:00:08]} 54. Kh2
{[%emt 0:00:20]} e4 {[%emt 0:00:31]} 55. Bc5 {[%emt 0:00:45]} Nc2 {[%emt 0:00:
11] Weighted Error Value: White=1.00/Black=0.05 (flawless)} 0-1

[Event "44th Chess Olympiad Women 2022"]
[Site "Chennai"]
[Date "2022.07.30"]
[Round "2.12"]
[White "Terbe, Julianna"]
[Black "Mirza, Diana"]
[Result "1-0"]
[WhiteElo "2291"]
[BlackElo "1898"]
[Annotator "TA"]
[PlyCount "109"]
[EventDate "2022.??.??"]
[TimeControl "60"]

{[%evp 21,108,24,31,18,25,23,18,22,37,0,0,-17,20,14,13,19,23,17,18,20,33,26,43,
54,45,52,60,56,83,87,118,78,218,220,213,218,232,223,231,231,226,222,227,220,
218,237,239,243,247,233,307,274,268,268,261,252,245,198,203,206,384,384,384,
377,418,413,392,206,193,196,285,279,283,262,266,146,153,157,302,288,288,226,
518,455,426,354,29975,646,29999]} 1. d4 {[%emt 0:00:02]} d5 {[%emt 0:00:10]} 2.
Nf3 {[%emt 0:00:11]} Nf6 {[%emt 0:00:11]} 3. g3 {[%emt 0:00:53]} g6 {[%emt 0:
00:00]} 4. Bg2 {[%emt 0:00:06]} Bg7 {[%emt 0:00:09]} 5. c4 {[%emt 0:00:10]} c6
{[%emt 0:01:03]} 6. cxd5 {[%emt 0:00:05]} cxd5 {[%emt 0:00:24]} 7. Nc3 {
[%emt 0:00:05]} Nc6 {[%emt 0:04:07]} 8. Ne5 {[%emt 0:00:05]} Bf5 {[%emt 0:00:
00]} 9. Nxc6 {[%emt 0:01:23]} bxc6 {[%emt 0:00:06]} 10. O-O {[%emt 0:00:05]}
O-O {[%emt 0:03:01]} 11. Bf4 {[%emt 0:03:29]} Nh5 {[%emt 0:04:52]} 12. Be3 {
[%emt 0:01:00] D79: Fianchetto Grünfeld: Symmetrical Variation (6 0-0 c6 7
cxd5 cxd5).} Nf6 {[%emt 0:01:35][%cal Yh5f6,Yf6d7,Yd7b6,Yb6c4] 12... c5 is
setting a new trend.} 13. Na4 {[%emt 0:03:22]} Nd7 {[%emt 0:08:45]} 14. Rc1 {
[%emt 0:02:49] The position is equal.} Rc8 {[%emt 0:00:30]} 15. Qd2 {[%emt 0:
04:01]} Nb6 {[%emt 0:03:16]} 16. Qd1 {[%emt 0:13:25]} Nc4 {[%emt 0:00:00]} 17.
Bf4 {[%emt 0:03:05][%cal Ye2e4]} e5 {[%emt 0:07:56]} 18. dxe5 {[%emt 0:00:10]}
Nxe5 {[%emt 0:00:20]} 19. b3 {[%emt 0:02:29]} Re8 {[%emt 0:00:00]} 20. Qd2 {
[%emt 0:03:53]} Qe7 {[%emt 0:09:05]} 21. Rfe1 {[%emt 0:04:41] [#]} Ng4 $146 {
[%emt 0:02:13]} ({Predecessor:} 21... Nd7 22. Qa5 Nf6 23. Qc5 Ne4 24. Qxe7 Rxe7
25. g4 Bd7 26. h3 g5 27. Bh2 f5 28. gxf5 Bxf5 29. e3 Bd7 30. Rc2 h6 31. Bxe4
dxe4 {1-0 (52) Praggnanandhaa,R (2619)-Mekhitarian,K (2569) Chess. com INT 2022
}) 22. Nc5 {[%emt 0:13:07]} Nf6 {[%emt 0:10:23] Against e4} 23. Be3 {[%emt 0:
03:58]} Ng4 {[%emt 0:03:32][%cal Rg4e3]} 24. Bd4 {[%emt 0:00:51]} Bh6 {[%emt 0:
00:50]} 25. e3 {[%emt 0:02:42]} Ne5 {[%emt 0:00:35]} 26. Qc3 {[%emt 0:00:00]}
Bg4 {[%emt 0:03:36] A mistake that costs the game.} (26... Qc7 $16) 27. Bxe5
$18 {[%emt 0:01:29]} Qxe5 {[%emt 0:00:07]} 28. Qxe5 {[%emt 0:00:12]} Rxe5 {
[%emt 0:00:01]} 29. h3 {[%emt 0:00:20]} Bf5 {[%emt 0:02:35]} 30. g4 {[%emt 0:
00:00]} Be4 {[%emt 0:03:50]} 31. f3 {[%emt 0:02:08]} Bxf3 {[%emt 0:04:13]} 32.
Bxf3 {[%emt 0:00:06]} Rxe3 {[%emt 0:01:12]} 33. Kg2 {[%emt 0:03:04]} Rce8 {
[%emt 0:03:19]} 34. Rxe3 {[%emt 0:04:31]} Rxe3 {[%emt 0:01:04] [#]} 35. Rc2 $1
{[%emt 0:00:17]} d4 {[%emt 0:06:48]} 36. Re2 {[%emt 0:03:14]} Rc3 {[%emt 0:00:
00]} 37. Ne4 {[%emt 0:01:39]} Rc1 {[%emt 0:01:08]} 38. g5 {[%emt 0:00:27]} Bf8
{[%emt 0:02:26]} 39. Nf6+ {[%emt 0:00:19]} Kg7 {[%emt 0:00:06]} 40. Rd2 {
[%emt 0:01:04]} c5 $2 {[%emt 0:02:01]} (40... h6 {is a better defense.} 41.
Ne8+ (41. Rxd4 hxg5 42. Ne4 Kh6 $18) 41... Kg8) 41. Bd5 {[%emt 0:30:16]} Be7 {
[%emt 0:02:46]} 42. Ne4 {[%emt 0:00:00]} f5 {[%emt 0:03:24]} 43. gxf6+ $1 {
[%emt 0:00:00]} Bxf6 {[%emt 0:00:01]} 44. Nxf6 {[%emt 0:00:00]} (44. Rf2 $142
Be5 45. Rf7+ Kh6 46. Rxa7) 44... Kxf6 {[%emt 0:00:01] Endgame KRB-KR} 45. Bc4 {
[%emt 0:00:00]} Rc3 {[%emt 0:01:59]} (45... Kf5 $142 46. Rf2+ Ke4) 46. Re2 {
[%emt 0:00:00]} h5 {[%emt 0:04:24]} 47. Re6+ {[%emt 0:00:00]} Kf5 {[%emt 0:01:
42][%cal Yc3c4] [#] aiming for ...Rxc4!} 48. Rc6 {[%emt 0:00:00]} ({White must
play} 48. Ra6 $1 $18) 48... Rc2+ $16 {[%emt 0:06:42]} 49. Kf3 {[%emt 0:00:00]
Bd3+ is the strong threat.} Rxa2 {[%emt 0:00:54]} (49... Rc3+ $16 {was called
for.} 50. Ke2 Ke4) 50. Rxc5+ {[%emt 0:00:00]} Kf6 {[%emt 0:00:00]} 51. h4 {
[%emt 0:00:00] And now Rc6+ would win.} a5 $2 {[%emt 0:04:03]} (51... Rh2 52.
Rc6+ Kf5 53. Bd3+ Ke5 54. Rxg6 (54. Bxg6 Rxh4 55. Rc5+ Kd6 $16) 54... Rh3+ 55.
Rg3 Rxh4 56. Rg5+ Kd6) 52. Rc6+ {[%emt 0:00:00]} Kg7 {[%emt 0:00:00]} 53. Rc7+
{[%emt 0:00:00]} Kf6 $2 {[%emt 0:00:17]} (53... Kf8 $18 54. Ra7 Rh2) 54. Ke4 {
[%emt 0:00:00]} (54. Kf4 $142 Rf2+ 55. Ke4 g5 56. Rf7+ Kg6 57. Rxf2 gxh4 58.
Kxd4 h3 59. Bd3+ Kg5 60. Rf5+ Kg6 61. Rxa5+ Kf6 62. Rxh5) 54... Rh2 {[%emt 0:
02:51]} 55. Rf7# {[%emt 0:00:00] Weighted Error Value: White=0.24 (precise) /
Black=0.65} 1-0

[Event "44th Chess Olympiad Women 2022"]
[Site "Chennai"]
[Date "2022.07.30"]
[Round "2.13"]
[White "Azhar, Puteri Munajjah Az-"]
[Black "Garcia Martin, Marta"]
[Result "0-1"]
[WhiteElo "2018"]
[BlackElo "2305"]
[Annotator "TA"]
[PlyCount "116"]
[EventDate "2022.??.??"]
[TimeControl "60"]

{[%evp 11,116,10,20,1,2,0,0,0,12,20,16,16,20,-3,17,-3,-3,-3,4,-3,0,-20,32,0,33,
10,2,0,48,38,54,0,0,0,0,0,0,0,0,-20,0,0,0,-7,0,0,0,0,0,-18,0,-74,0,0,0,-81,0,
-81,0,0,0,-81,0,-81,0,0,0,-6,0,-6,0,-7,0,0,0,-98,-83,-77,-77,-70,-70,-114,-107,
-104,-8,-292,-313,-318,-308,-301,-269,-2645,-2625,-1368,-2580,-2055,-2219,
-1750,-1702,-5410,-2829,-5989,-5410,-6503,-6281,-6279,-1481]} 1. e4 {[%emt 0:
00:00]} c5 {[%emt 0:00:24]} 2. Nf3 {[%emt 0:00:15]} Nc6 {[%emt 0:00:54]} 3. Nc3
{[%emt 0:00:57]} e5 {[%emt 0:08:38]} 4. Bc4 {[%emt 0:08:37]} Be7 {[%emt 0:00:
00]} 5. d3 {[%emt 0:03:54]} Nf6 {[%emt 0:01:48]} 6. Nd5 {[%emt 0:07:04]} d6 {
[%emt 0:03:24]} 7. h3 {[%emt 0:01:47] B30: Sicilian: 2...Nc6 3 Bb5, lines
without ...g6.} O-O {[%emt 0:03:54]} 8. c3 {[%emt 0:11:30]} Nxd5 {[%emt 0:00:
00]} 9. Bxd5 {[%emt 0:00:37] The position is equal.} Bf6 {[%emt 0:09:34] [#]}
10. Be3 $146 {[%emt 0:02:37]} ({Predecessor:} 10. O-O Ne7 11. Bb3 Rb8 12. a4 b6
13. Nh2 Ng6 14. Qh5 Be6 15. Bxe6 fxe6 16. Qg4 {½-½ (49) Vera Cruz,A (2331)
-Leroy,J (2386) ICCF email 2015}) 10... Be6 {[%emt 0:02:06]} 11. Bxe6 {[%emt 0:
00:00]} fxe6 {[%emt 0:00:07]} 12. h4 {[%emt 0:00:02]} Qd7 {[%emt 0:17:31]} 13.
Ng5 {[%emt 0:07:35]} b5 {[%emt 0:17:54]} 14. Qg4 {[%emt 0:04:51]} Rfe8 {
[%emt 0:05:05]} 15. Rh3 {[%emt 0:04:27]} b4 {[%emt 0:03:00]} 16. c4 {[%emt 0:
00:00]} b3 {[%emt 0:04:46]} (16... a5 $11) 17. a3 {[%emt 0:00:45]} Bxg5 {
[%emt 0:03:23]} 18. hxg5 {[%emt 0:00:13] [#] Black must now prevent g6.} g6 $1
{[%emt 0:00:10]} 19. Ke2 {[%emt 0:03:25]} Rad8 {[%emt 0:01:26]} (19... Rf8 $11)
20. Rah1 $14 {[%emt 0:01:45]} Re7 {[%emt 0:00:06]} 21. Rc1 {[%emt 0:05:36]} (
21. Rf3 $1 $14) 21... Rf7 {[%emt 0:02:29]} 22. g3 {[%emt 0:02:41]} a5 {[%emt 0:
00:00]} 23. Rh2 {[%emt 0:01:24]} a4 {[%emt 0:00:19]} 24. Rhh1 {[%emt 0:02:26]}
Rdf8 {[%emt 0:01:00]} 25. Rh2 {[%emt 0:00:18]} (25. f4 exf4 26. gxf4 Nd4+ 27.
Kd2 Qe7 $15) 25... Rd8 {[%emt 0:00:31]} 26. Rhh1 {[%emt 0:00:07]} Qe8 {[%emt 0:
00:00]} 27. Rh6 {[%emt 0:00:28]} Rfd7 {[%emt 0:00:32]} 28. Rhh1 {[%emt 0:01:18]
} Rf7 {[%emt 0:00:16]} 29. Rhf1 {[%emt 0:00:37]} Qe7 {[%emt 0:00:21]} 30. f4 {
[%emt 0:00:51]} Rdf8 {[%emt 0:00:21]} 31. Qh3 {[%emt 0:00:37]} (31. Rf2 $11)
31... Qd7 {[%emt 0:01:03]} ({Black should play} 31... exf4 $17 32. Rxf4 (32.
gxf4 e5 $17) 32... e5 33. Rxf7 Qxf7) 32. Qg4 {[%emt 0:00:22]} Qe7 {[%emt 0:00:
00]} 33. Qh3 {[%emt 0:00:16]} (33. Rf2 $11) 33... Qe8 {[%emt 0:00:34]} (33...
exf4 $17 34. Rxf4 (34. gxf4 e5 $17) 34... e5 35. Rxf7 Qxf7) 34. Qg4 {[%emt 0:
00:00] [#]} (34. Rf3 $11) 34... Kh8 {[%emt 0:00:28]} (34... exf4 $1 $17 35.
Rxf4 (35. gxf4 e5 $15) 35... e5) 35. Rf2 $11 {[%emt 0:00:31]} Qe7 {[%emt 0:00:
00]} 36. Rff1 {[%emt 0:00:32]} (36. Re1 $11 {remains equal.}) 36... Kg8 {
[%emt 0:00:30]} 37. Qh3 {[%emt 0:00:31]} Qd7 {[%emt 0:00:30]} (37... exf4 $17
38. Rxf4 (38. gxf4 $2 e5 $17) 38... e5 39. Rxf7 Qxf7) 38. Qg4 {[%emt 0:00:12]}
Rd8 {[%emt 0:00:30]} 39. Qh3 {[%emt 0:00:50]} Rdf8 {[%emt 0:00:30]} 40. Qg4 {
[%emt 0:00:26]} Qe7 {[%emt 0:00:31]} 41. Rf2 {[%emt 0:30:30]} Re8 {[%emt 0:00:
00][%cal Yd6d5]} 42. Qh3 {[%emt 0:00:00]} Qf8 {[%emt 0:02:29]} 43. Qg4 {
[%emt 0:00:00]} (43. Kf1 $11 {keeps the balance.}) 43... exf4 {[%emt 0:01:22]}
44. gxf4 {[%emt 0:00:00]} Qg7 {[%emt 0:00:05]} 45. Kf1 {[%emt 0:00:00]} Nd4 {
[%emt 0:00:20]} 46. Qg3 {[%emt 0:00:00]} Nc2 {[%emt 0:02:50]} 47. Rb1 {[%emt 0:
00:00]} Ref8 {[%emt 0:00:41] Black is much more active. The white rooks are
badly placed.} (47... Nxe3+ $17 48. Qxe3 Ref8) 48. Kg1 $2 {[%emt 0:00:00]
White does not recover from this.} (48. Bd2 $1 $11) 48... Nxe3 $19 {[%emt 0:01:
56]} 49. Qxe3 {[%emt 0:00:00]} e5 {[%emt 0:00:02]} 50. Rbf1 {[%emt 0:00:00]}
exf4 {[%emt 0:01:45]} 51. Rxf4 {[%emt 0:00:00]} (51. Qf3) 51... Rxf4 {[%emt 0:
00:10] Black is clearly winning.} 52. Rxf4 {[%emt 0:00:00]} Rxf4 {[%emt 0:00:
10]} (52... Qxb2 $142 53. Rxf8+ Kxf8) 53. Qxf4 {[%emt 0:00:00]} Qxb2 {[%emt 0:
00:05] Strongly threatening ...Qe5. KQ-KQ} 54. Qg4 {[%emt 0:00:00]} Qe5 {
[%emt 0:05:22] aiming for ...h5.} 55. Qc8+ {[%emt 0:00:28]} Kf7 {[%emt 0:00:06]
} 56. Qb7+ {[%emt 0:01:56]} Qe7 {[%emt 0:00:28]} 57. Qb5 {[%emt 0:04:01]} Qxg5+
{[%emt 0:00:21]} 58. Kf2 {[%emt 0:00:22]} b2 {[%emt 0:00:00] Weighted Error
Value: White=0.63/Black=0.18 (very precise)} (58... Qd2+ $142 59. Kg1 Qe1+ 60.
Kh2 Qe2+ 61. Kg3 Qxd3+ 62. Kg2 Qxe4+ 63. Kf2 Qe5 64. Qd7+ Kf6 65. Qd8+ Kf5) 0-1